Workbook

Sheet Menu

Sheet Onshore Entry Fees
B1: Application Fees - 2021/22
B3: Calculator for Onshore Fee
B5: Please enter the Zone, the MW of the generator or increase/decrease in TEC and the Type of Entry Fee and then click on "Calculate Onshore Fee" If applying for a combination of changes after making an initial application and this is prior to the completion of works associated to the initial application, such as a change to works or completion date that also includes a TEC Change, the Application Fee will be the higher of the TEC Change Fee or Modification Application Fee.
B7: Zone and Host TO
B8: MW
B9: Base | C9: Macro Data
B10: Base | D10: =Base -> 0
B11: Rate | C11: Macro Data
B12: Application Type | D12: 0.75
C13: =TypeFee -> 0
D14: =Base+(MW*Rate) -> 0
D16: =D14*Fee -> 0
B17: Application Fee (VAT Not Included) | D17: =IF(D16>400000, 400000, D16) -> 0
B18: VAT (20%) | D18: =D17*0.2 -> 0
B19: Application Fee (VAT Included) | D19: =D17+D18 -> 0 | K19: `
H20: -
G21: Entry Application Fees | L21: Onshore Application BEGA/BELLA
B22: Other Entry Fees | I22: Fee | N22: Fee
G23: SHET1 SHET Host TO, SPT affected | H23: <100MW | I23: 27950 | L23: SHET1 SHET Host TO, SPT affected | N23: 18450
B24: New Application | E24: 1 | H24: 100MW-249MW | I24: 27950
B25: Modification Application | E25: 0.75 | H25: 250MW-1800MW | I25: 34950
H26: >1800MW | I26: 54950
B27: Request for Design Variation in Addition to Standard Offer | E27: 1.5 | G27: SPT3 SPT Host, SHET affected | H27: <100MW | I27: 44950 | L27: SPT3 SPT Host, SHET affected | N27: 23450
B28: Embedded Generation New Application | E28: 1 | H28: 100MW-249MW | I28: 44950
B29: Embedded Generation Modification Application | E29: 0.75 | H29: 250MW-1800MW | I29: 44950
H30: >1800MW | I30: 99950
B31: TEC Increase / Decrease | E31: 1 | G31: SPT2 SPT Host TO | H31: <100MW | I31: 39950 | L31: SPT2 SPT Host TO | N31: 18450
H32: 100MW-249MW | I32: 39950
H33: 250MW-1800MW | I33: 39950
H34: >1800MW | I34: 89950
G35: SPT1 SPT Host, NGET affected | H35: <100MW | I35: 50700 | L35: SPT1 SPT Host, NGET affected | N35: 24450
A36: Link to "The Statement of Use of System Charges" | H36: 100MW-249MW | I36: 55950
A37: https://www.nationalgrideso.com/charging/charging-statements | H37: 250MW-1800MW | I37: 72650
H38: >1800MW | I38: 141950
G39: NGET2 NGET Host, SPT affected | H39: <100MW | I39: 34450 | L39: NGET2 NGET Host, SPT affected | N39: 16150
H40: 100MW-249MW | I40: 45000
H41: 250MW-1800MW | I41: 85350
H42: >1800MW | I42: 128950
G43: NGET 1 NGET Host TO | H43: <100MW | I43: 26450 | L43: NGET 1 NGET Host TO | N43: 12650
H44: 100MW-249MW | I44: 37000
H45: 250MW-1800MW | I45: 70350
H46: >1800MW | I46: 108950

Sheet Offshore Entry Fees
A1: Application Fees - 2021/22
A3: Calculator for Offshore Fee
B5: Please enter the Zone and the Type of Entry Fee and then click on "Calculate Offshore Fee"
B7: Zone and Host TO
B8: £ per Connection Site | D8: =offshoresite -> 0
B9: £ per Connection Site (Macro Data)
B10: Total No. of Offshore Platforms | D10: 1
B11: Application Type | D11: =offshoreentryfee -> 0
C12: =OffshoreTypeFee -> 0
D13: =D8*platform -> 0
D15: =D13*offshoreapplicationfee -> 0
B17: Application Fee (VAT Not Included) | D17: =IF(D15>400000, 400000, D15) -> 0
B18: VAT (20%) | D18: =D17*0.2 -> 0
B19: Application Fee (VAT Included) | D19: =D17+D18 -> 0
B23: Other Entry Fees | F23: Offshore Entry Application Fees
G24: Per Connection Site
B25: New Application | D25: 1 | F25: SHET1 SHET Host TO, SPT affected | G25: 99550
B26: Modification Application | D26: 0.75
B27: Request for Design Variation in Addition to Standard Offer | D27: 1.5 | F27: SPT3 SPT Host, SHET affected | G27: 104550
F29: SPT2 SPT Host TO | G29: 54550
G30: 100>1320
F31: SPT1 SPT Host, NGET affected | G31: 78900
G32: 100>1320
F33: NGET2 NGET Host, SPT affected | G33: 98300
F34: NGET 1 NGET Host TO | G34: 63300

Sheet Exit Fees
A1: Application Fees - 2021/2022
A3: Exit Fees
B5: Zone and Host TO
B6: MW
B7: Application Type
B8: Rate | C8: =IF(ExitZone="","",VLOOKUP(ExitTypeFee,B19:C23,2,FALSE)) -> 
B9: Application Fee Base
B10: Application Fee Cost | C10: =IF(ExitZone="","",ExitFee*C8) -> 
B11: VAT (20%) | C11: =IF(ExitZone="","",C10*0.2) -> 
B12: Application Fee (VAT Included) | C12: =IF(ExitZone="","",C10+VAT) -> 
E17: NGET 1 NGET Host TO | G17: NGET2 NGET Host, SPT affected | I17: SPT1 SPT Host, NGET affected | K17: SPT2 SPT Host TO | M17: SPT3 SPT Host, SHET affected | O17: SHET1 SHET Host TO, SPT affected
E18: <100MW | F18: >=100MW | G18: <100MW | H18: >=100MW | I18: <100MW | J18: >=100MW | K18: <100MW | L18: >=100MW | M18: <100MW | N18: >=100MW | O18: <100MW | P18: >=100MW
B19: New Supply Point | C19: 1 | E19: 31650 | F19: 39500 | G19: 43650 | H19: 64500 | I19: 48700 | J19: 67650 | K19: 35750 | L19: 50750 | M19: 50750 | N19: 65750 | O19: 42750 | P19: 55750
B20: Modification Application | C20: 0.75 | E20: =ExitNGET1a*0.75 -> 23737.5 | F20: =ExitNGET1b*0.75 -> 29625 | G20: =ExitNGET2a*0.75 -> 32737.5 | H20: =ExitNGET2b*0.75 -> 48375 | I20: =ExitSPT1a*0.75 -> 36525 | J20: =ExitSPT1b*0.75 -> 50737.5 | K20: =ExitSPT2a*0.75 -> 26812.5 | L20: =ExitSPT2b*0.75 -> 38062.5 | M20: =ExitSPT3a*0.75 -> 38062.5 | N20: =ExitSPT3b*0.75 -> 49312.5 | O20: =ExitSHET1a*0.75 -> 32062.5 | P20: =ExitSHET1b*0.75 -> 41812.5
B21: Statement of Works at existing supply point | C21: 1 | E21: 3200 | G21: 3700 | I21: 3700 | K21: 1100 | M21: 1600 | O21: 1600
B22: Project Progression | C22: 1 | E22: 18250 | G22: 20250 | I22: 20450 | K22: 8700 | M22: 10950 | O22: 9700
B23: Modification to Project Progression | C23: 0.75
B39: Link to "The Statement of Use of System Charges"
B40: https://www.nationalgrideso.com/charging/charging-statements

Sheet Other Fees
B6: Application Type | C6: NGET1 | D6: NGET2 | E6: SPT1 | F6: SPT2 | G6: SPT3 | H6: SHET1
B7: TEC Exchange Request (no system works) | C7: 10000 | D7: 10000 | E7: 10000 | F7: 10000 | G7: 17000 | H7: 17000
B8: Request for STTEC or SNSTF | C8: 10000
B9: Directly Connected Reactive Only Service Provider | C9: 10000 | D9: 10000 | E9: 35000 | F9: 35000 | G9: 35000 | H9: NA
B10: Suppliers and Interconnector Users | C10: 5000
B11: Assign, transfer or minor admin changes | C11: 3100 | D11: 4600 | E11: 4600 | F11: 2100 | G11: 7100 | H11: 5600
B12: Storage | C12: NA | D12: NA | E12: NA | F12: 39950 | G12: 49950 | H12: 29950
B13: Novation of a bilateral agreement | C13: 3000

Sheet Zonal Map
